Workbook

Sheet Modalità di utilizzo
A1: Accordo quadro per l’affidamento di servizi applicativi e servizi di supporto in ambito “Sanita’ digitale - Sistemi informativi clinico-assistenziali 2” per le Pubbliche Amministrazioni del SSN ID Sigef 2106
A2: Sanità Digitale Lotti Applicativi LOTTO 4
A4: Il presente excel può essere utilizzato a supporto della predisposizione di un AS.
A6: Nel foglio "Elementi dell'AS" la PA deve inserire le informazioni richieste nelle celle verdi in base ai prodotti e servizi previsti. Si fa presente che: - La quota dedicata agli AS equivale ad importo massimo pari al 70% del massimale del relativo lotto. - la PA può richiedere, in accordo con quanto previsto nella documentazione dell'iniziativa, dei servizi accessori aggiuntivi. La BA associata a tali servizi accessori aggiuntivi non può essere superiore al 50% della BdA dell'AS. Lotto 1: Cartella Clinica Elettronica - PPAA del SSN Nord - Valore totale, IVA esclusa: 168.000.000,00 Euro - Quota dedicata agli AS: 117.600.000,00 Euro Lotto 2: Cartella Clinica Elettronica - PPAA del SSN Centro-Sud - Valore totale, IVA esclusa: 252.000.000,00 Euro - Quota dedicata agli AS: 176.400.000,00 Euro Lotto 3: Enterprise Imaging - PPAA del SSN Nord - Valore totale, IVA esclusa: 152.000.000,00 Euro - Quota dedicata agli AS: 106.400.000,00 Euro Lotto 4: Enterprise Imaging - PPAA del SSN Centro-Sud - Valore totale, IVA esclusa: 228.000.000,00 Euro - Quota dedicata agli AS: 159.600.000,00 Euro

Sheet L4 Elementi dell'AS
C2: Lotto 4 - Base d'Asta AS | D2: =G19+G33 -> 1894946.24
C4: Inserire i valori nelle celle con sfondo giallo in base agli elementi previsti nell'AS
B6: SERVIZI | F6: Prezzo maggiore offerto in AQ | G6: Prezzo Totale in AS
B7: ID | C7: Elemento | D7: Numero di unità richieste | E7: Metrica
B8: 1 | C8: Tariffa omnicomprensiva per 1 Giorno/Team ottimale (8 ore lavorative) - Sviluppo di Applicazioni Software Ex novo – Green Field | E8: GG/persona | F8: =MAX('Offerta di AQ'!D3:G3) -> 209.22 | G8: =D8*F8 -> 0
B9: 2 | C9: Tariffa omnicomprensiva per 1 Giorno/Team ottimale (8 ore lavorative)- Evoluzione di Applicazioni Software Esistenti | D9: 1015 | E9: GG/persona | F9: =MAX('Offerta di AQ'!D4:G4) -> 190.5 | G9: =D9*F9 -> 193357.5
B10: 3 | C10: Tariffa omnicomprensiva per 1 Giorno/Team ottimale (8 ore lavorative) - Migrazione Applicativa al Cloud | E10: GG/persona | F10: =MAX('Offerta di AQ'!D5:G5) -> 210.1 | G10: 0
B11: 4 | C11: Tariffa omnicomprensiva per 1 Giorno/Team ottimale (8 ore lavorative) - Configurazione e Personalizzazione di Soluzioni di terze parti/open source/riuso | D11: 286 | E11: GG/persona | F11: =MAX('Offerta di AQ'!D6:G6) -> 197.3 | G11: 56427.8
B12: 5 | C12: Tariffa omnicomprensiva per 1 Giorno/Team ottimale (8 ore lavorative) - Manutenzione Adeguativa | E12: GG/persona | F12: =MAX('Offerta di AQ'!D7:G7) -> 187 | G12: 0
B13: 6 | C13: Tariffa omnicomprensiva per 1 Giorno/Team ottimale (8 ore lavorative) - Manutenzione Correttiva | E13: GG/persona | F13: =MAX('Offerta di AQ'!D8:G8) -> 184.23 | G13: 0
B14: 7 | C14: Canone per 1 Full Time Equivalent (FTE) impiegato mensilmente - Manutenzione Adeguativa e Manutenzione Correttiva | D14: 90 | E14: FTE/mese | F14: =MAX('Offerta di AQ'!D9:G9) -> 3699.72 | G14: 332974.8
B15: 8 | C15: Tariffa omnicomprensiva per 1 Giorno/Team ottimale (8 ore lavorative) - Conduzione Applicativa – Servizi di gestione Applicativi e Base Dati | D15: 915 | E15: GG/persona | F15: =MAX('Offerta di AQ'!D10:G10) -> 186.72 | G15: 170848.8
B16: 9 | C16: Tariffa omnicomprensiva per 1 Giorno/Team ottimale (8 ore lavorative) - Conduzione Applicativa – Supporto Specialistico | E16: GG/persona | F16: =MAX('Offerta di AQ'!D11:G11) -> 238.75 | G16: 0
B17: 10 | C17: Tariffa omnicomprensiva per 1 Giorno/Team ottimale (8 ore lavorative) – Servizi Infrastrutturali – Servizio di Conduzione Tecnica | D17: 985 | E17: GG/persona | F17: =MAX('Offerta di AQ'!D12:G12) -> 197.1 | G17: =D17*F17 -> 194143.5
B18: 11 | C18: Tariffa omnicomprensiva per 1 Giorno/Team ottimale (8 ore lavorative) – Servizi Infrastrutturali – Supporto Tecnologico | E18: GG/persona | F18: =MAX('Offerta di AQ'!D13:G13) -> 224.4 | G18: 0
F19: TOTALE | G19: =SUM(G8:G18) -> 947752.4
B21: SERVIZI ACCESSORI | F21: Prezzo maggiore offerto in AQ | G21: Prezzo Totale in AS
B22: ID | C22: Elemento | D22: Numero di unità richieste | E22: Metrica
B24: 12 | C24: Tariffa per singolo esame - livello BASSO complessità della struttura sanitaria – RIS-PACS – soluzione standard | E24: Unità | F24: =MAX('Offerta di AQ'!D14:G14) -> 1.05 | G24: =D24*F24 -> 0
B25: 13 | C25: Tariffa per singolo esame - livello MEDIO complessità della struttura sanitaria – RIS-PACS – soluzione standard | E25: Unità | F25: =MAX('Offerta di AQ'!D15:G15) -> 0.76 | G25: =D25*F25 -> 0
B26: 14 | C26: Tariffa per singolo esame - livello ALTO complessità della struttura sanitaria – RIS-PACS – soluzione standard | E26: Unità | F26: =MAX('Offerta di AQ'!D16:G16) -> 0.65 | G26: 0
B27: Altri | C27: Servizi, prodotti, SaaS e soluzioni di mercato attinenti alle “aree tematiche di riferimento” | G27: 347193.84
B28: Altri | C28: Servizi, prodotti, SaaS e soluzioni di mercato attinenti alle “aree tematiche di riferimento” | G28: 600000
B29: Altri
B30: Altri
B31: Altri
B32: Altri
F33: TOTALE | G33: =SUM(G24:G32) -> 947193.84
D35: =(0.5*G19)-G33 -> -473317.64
D36: !! ATTENZIONE!!
D37: Si ricorda che il totale servizi accessori non può essere superiore al 50% della BdA dell'AS

Sheet L4 Punteggi di AS
C2: Inserire i valori nelle celle con sfondo giallo
C4: Componente Tecnica | H4: Componente Economica | M4: Complessivo
C6: Punteggio Tecnico Totale di AS - PT tot AS | D6: 80 | H6: Prezzo complessivo offerto in AS (come calcolato dal Sistema) | M6: Punteggi complessivi in AS
C7: % Scelta dalla PA | D7: 0.25 | H7: ='Punteggi di AQ'!B2 -> RTI EBIT | M7: ='Punteggi di AQ'!B2 -> RTI EBIT | N7: =D25+I19 -> 39.28266857
C8: Punteggio Tecnico dell’AS - PT AS | D8: =D6-D9 -> 60 | H8: ='Punteggi di AQ'!B3 -> RTI GPI | M8: ='Punteggi di AQ'!B3 -> RTI GPI | N8: =D26+I20 -> 39.74026
C9: Punteggio Tecnico massimo ereditabile - PT ER | D9: =70*$D$7*($D$6/70) -> 20 | H9: ='Punteggi di AQ'!B4 -> RTI Engineering | M9: ='Punteggi di AQ'!B4 -> RTI Engineering | N9: =D27+I21 -> 38.43102571
H10: ='Punteggi di AQ'!B5 -> RTI Enterprise Services | M10: ='Punteggi di AQ'!B5 -> RTI Enterprise Services | N10: =D28+I22 -> 38.85906857
C12: Punteggi tecnici ereditati dalla fase di AQ | H12: Ribassi di AS
C13: ='Punteggi di AQ'!B2 -> RTI EBIT | D13: ='Punteggi di AQ'!C2*'L4 Punteggi di AS'!$D$7*('L4 Punteggi di AS'!$D$6/70) -> 19.28266857 | H13: ='Punteggi di AQ'!B2 -> RTI EBIT | I13: =IF(('L4 Elementi dell''AS'!$G$19+'L4 Elementi dell''AS'!$G$33) >0,ROUND(1-I7/('L4 Elementi dell''AS'!$G$19+'L4 Elementi dell''AS'!$G$33),6),0) -> 1
C14: ='Punteggi di AQ'!B3 -> RTI GPI | D14: ='Punteggi di AQ'!C3*'L4 Punteggi di AS'!$D$7*('L4 Punteggi di AS'!$D$6/70) -> 19.74026 | H14: ='Punteggi di AQ'!B3 -> RTI GPI | I14: =IF(('L4 Elementi dell''AS'!$G$19+'L4 Elementi dell''AS'!$G$33) >0,ROUND(1-I8/('L4 Elementi dell''AS'!$G$19+'L4 Elementi dell''AS'!$G$33),6),0) -> 1
C15: ='Punteggi di AQ'!B4 -> RTI Engineering | D15: ='Punteggi di AQ'!C4*'L4 Punteggi di AS'!$D$7*('L4 Punteggi di AS'!$D$6/70) -> 18.43102571 | H15: ='Punteggi di AQ'!B4 -> RTI Engineering | I15: =IF(('L4 Elementi dell''AS'!$G$19+'L4 Elementi dell''AS'!$G$33) >0,ROUND(1-I9/('L4 Elementi dell''AS'!$G$19+'L4 Elementi dell''AS'!$G$33),6),0) -> 1
C16: ='Punteggi di AQ'!B5 -> RTI Enterprise Services | D16: ='Punteggi di AQ'!C5*'L4 Punteggi di AS'!$D$7*('L4 Punteggi di AS'!$D$6/70) -> 18.85906857 | H16: ='Punteggi di AQ'!B5 -> RTI Enterprise Services | I16: =IF(('L4 Elementi dell''AS'!$G$19+'L4 Elementi dell''AS'!$G$33) >0,ROUND(1-I10/('L4 Elementi dell''AS'!$G$19+'L4 Elementi dell''AS'!$G$33),6),0) -> 1
C18: ="Punteggi tecnici assegnati in AS (arrotondati alla 4 cifra decimale) - Max: "&D8 -> Punteggi tecnici assegnati in AS (arrotondati alla 4 cifra decimale) - Max: 60 | H18: Punteggi economici di AS
C19: ='Punteggi di AQ'!B2 -> RTI EBIT | H19: ='Punteggi di AQ'!B2 -> RTI EBIT | I19: =ROUND((1-POWER((1-I13),2))*(100-$D$6),4) -> 20
C20: ='Punteggi di AQ'!B3 -> RTI GPI | H20: ='Punteggi di AQ'!B3 -> RTI GPI | I20: =ROUND((1-POWER((1-I14),2))*(100-$D$6),4) -> 20
C21: ='Punteggi di AQ'!B4 -> RTI Engineering | H21: ='Punteggi di AQ'!B4 -> RTI Engineering | I21: 20
C22: ='Punteggi di AQ'!B5 -> RTI Enterprise Services | H22: ='Punteggi di AQ'!B5 -> RTI Enterprise Services | I22: 20
C24: Punteggi tecnici complessivi di AS
C25: ='Punteggi di AQ'!B2 -> RTI EBIT | D25: =D19+D13 -> 19.28266857
C26: ='Punteggi di AQ'!B3 -> RTI GPI | D26: =D20+D14 -> 19.74026
C27: ='Punteggi di AQ'!B4 -> RTI Engineering | D27: =D21+D15 -> 18.43102571
C28: ='Punteggi di AQ'!B5 -> RTI Enterprise Services | D28: =D22+D16 -> 18.85906857

Sheet Ana (hidden)
A1: Servizi_Accessori
A2: Servizi di gestione operativa
A3: Servizi di classificazione/modellazione dei dati e data entry manuali
A4: Servizi di acquisizione dati per i progetti di Smart Health
A5: Servizi archivistici e Servizi finalizzati all’acquisizione dei formati digitali
A6: Servizi di e-learning ed assistenza virtuale
A7: Servizi di contact center e Service Desk/help desk di I livello
A8: Servizi di Service Control Room per Monitoraggio tecnico/applicativo
A9: Servizi, prodotti, SaaS e soluzioni di mercato attinenti alle “aree tematiche di riferimento”
A10: Soluzioni di Servizi per la gestione della conservazione digitale a norma

Sheet Punteggi di AQ
B2: RTI EBIT | C2: 67.48934
B3: RTI GPI | C3: 69.09091
B4: RTI Engineering | C4: 64.50859
B5: RTI Enterprise Services | C5: 66.00674

Sheet Offerta di AQ
B2: Codice Servizio | C2: DESCRIZIONE | D2: RTI EBIT | E2: RTI GPI | F2: RTI Engineering | G2: RTI Enterprise Services
B3: 1 | C3: Tariffa omnicomprensiva per 1 Giorno/Team ottimale (8 ore lavorative) - Sviluppo di Applicazioni Software Ex novo – Green Field | D3: 166.1 | E3: 193.78 | F3: 156 | G3: 209.22
B4: 2 | C4: Tariffa omnicomprensiva per 1 Giorno/Team ottimale (8 ore lavorative)- Evoluzione di Applicazioni Software Esistenti | D4: 161.78 | E4: 188.04 | F4: 146.5 | G4: 190.5
B5: 3 | C5: Tariffa omnicomprensiva per 1 Giorno/Team ottimale (8 ore lavorative) - Migrazione Applicativa al Cloud | D5: 169.54 | E5: 194.24 | F5: 157 | G5: 210.1
B6: 4 | C6: Tariffa omnicomprensiva per 1 Giorno/Team ottimale (8 ore lavorative) - Configurazione e Personalizzazione di Soluzioni di terze parti/open source/riuso | D6: 163.7 | E6: 190.79 | F6: 151 | G6: 197.3
B7: 5 | C7: Tariffa omnicomprensiva per 1 Giorno/Team ottimale (8 ore lavorative) - Manutenzione Adeguativa | D7: 156.53 | E7: 186.75 | F7: 145.75 | G7: 187
B8: 6 | C8: Tariffa omnicomprensiva per 1 Giorno/Team ottimale (8 ore lavorative) - Manutenzione Correttiva | D8: 155.37 | E8: 184.23 | F8: 142.25 | G8: 181.95
B9: 7 | C9: Canone per 1 Full Time Equivalent (FTE) impiegato mensilmente - Manutenzione Adeguativa e Manutenzione Correttiva | D9: 3114.36 | E9: 3699.72 | F9: 2866 | G9: 3669.3
B10: 8 | C10: Tariffa omnicomprensiva per 1 Giorno/Team ottimale (8 ore lavorative) - Conduzione Applicativa – Servizi di gestione Applicativi e Base Dati | D10: 162.43 | E10: 186.72 | F10: 145 | G10: 181.85
B11: 9 | C11: Tariffa omnicomprensiva per 1 Giorno/Team ottimale (8 ore lavorative) - Conduzione Applicativa – Supporto Specialistico | D11: 174.74 | E11: 205.12 | F11: 173.25 | G11: 238.75
B12: 10 | C12: Tariffa omnicomprensiva per 1 Giorno/Team ottimale (8 ore lavorative) – Servizi Infrastrutturali – Servizio di Conduzione Tecnica | D12: 174.86 | E12: 194.15 | F12: 162 | G12: 197.1
B13: 11 | C13: Tariffa omnicomprensiva per 1 Giorno/Team ottimale (8 ore lavorative) – Servizi Infrastrutturali – Supporto Tecnologico | D13: 179.84 | E13: 201.29 | F13: 169.6 | G13: 224.4
B14: 12 | C14: Tariffa per singolo esame - livello BASSO complessità della struttura sanitaria – RIS-PACS – soluzione standard | D14: 1.05 | E14: 0.86 | F14: 0.43 | G14: 0.9
B15: 13 | C15: Tariffa per singolo esame - livello MEDIO complessità della struttura sanitaria – RIS-PACS – soluzione standard | D15: 0.76 | E15: 0.66 | F15: 0.37 | G15: 0.76
B16: 14 | C16: Tariffa per singolo esame - livello ALTO complessità della struttura sanitaria – RIS-PACS – soluzione standard | D16: 0.41 | E16: 0.53 | F16: 0.32 | G16: 0.65
